Cogmind - Beta 10.2 @@@ ROGUE MODE // 2021.02.12 @ 21:51:05 Player: The Phoenix Tome Result: Destroyed by Svarog with Nova Cannon Performance ------------- Evolutions (6) 3000 Regions Visited (17) 3400 Robots Destroyed (211) 1055 Value Destroyed (9634) 9634 Prototype IDs (16) 320 Alien Tech Used (1) 200 Bonus (1959) 1959 TOTAL SCORE: 19568 Bonus ------- High Alert Combat Kills 383 Follower Combat Kills 841 Met Zhirov 300 Met R17 at Cetus 500 Friendly Fire -65 Cogmind --------- Core Integrity 0/1150 Matter 300/300 Energy 100/100 System Corruption 20% Temperature Cool (18) Movement Core (50) Location -4/Zhirov Parts ------- > --- POWER (2) -------- (None) > --- PROPULSION (4) --- (None) > --- UTILITY (10) ----- Utility Shielding > --- WEAPON (3) ------- (None) > --- INVENTORY (4) ---- Micro Fission Core Medium Treads Tesla Rifle Heavy Phase Cannon Peak State ------------ > --- POWER ------------ Antimatter Reactor Quantum Reactor > --- PROPULSION ------- Heavy Treads Centrium Heavy Treads > --- UTILITY ---------- Advanced Coolant Injector Large Storage Unit Large Storage Unit High-capacity Storage Unit Advanced Targeting Computer Centrium Medium Armor Plating Damper Plating Improved System Restoration Module > --- WEAPON ----------- Tesla Rifle Hardcell Cannon Heavy Gauss Cannon > --- INVENTORY -------- Light Antimatter Reactor Improved Treads Medium Treads Heavy Treads Advanced Medium Treads Centrium Heavy Treads Improved Sensor Array Damper Plating Experimental Force Field Point Defense Array Heavy Tesla Rifle Matter Neutralizer Coil Gun Railgun Railgun Improved KE Penetrator [Rating: 125] Favorites ----------- Power Quantum Reactor Engine Improved Ion Engine Power Core Enhanced Nuclear Core Reactor Quantum Reactor Propulsion Armored Treads Treads Armored Treads Wheel Armored Huge Wheel Utility Large Storage Unit Device Improved Cooling System Storage Large Storage Unit Processor Advanced Targeting Computer Hackware Hacking Suite Protection Hardened Medium Armor Plating Weapon Coil Gun Energy Gun Heavy Laser Energy Cannon Advanced Beam Cannon Ballistic Gun Coil Gun Ballistic Cannon Gauss Cannon Launcher Heavy Rocket Launcher Slashing Weapon Plasma Sword Build | -11 -10 -10 -9 -8 -7 -6 -6 -6 -6 -6 -5 -4 -4 -4 -4 -4 -4 ------- Run | Scr Mat Min Mat Mat Fac Fac Was Fac Ext Cet Fac Fac Was Fac Upp Upp Zhi Slots Evolved 12 | . . . 2 2 2 2 . . . . 2 2 . . . . . Power 1 | . . . . . . 1 . . . . . . . . . . . Propulsion 2 | . . . . 1 . 1 . . . . . . . . . . . Utility 8 | . . . 1 1 2 . . . . . 2 2 . . . . . Weapon 1 | . . . 1 . . . . . . . . . . . . . . Parts Attached 260 | 7 8 3 10 5 34 5 2 7 32 25 17 30 33 28 4 6 4 Power 30 | 1 . 1 2 1 1 1 . 1 10 2 . 2 4 4 . . . Engine 14 | 1 . 1 2 1 . 1 . . 8 . . . . . . . . Core 8 | . . . . . 1 . . 1 2 . . . 1 3 . . . Reactor 8 | . . . . . . . . . . 2 . 2 3 1 . . . Propulsion 37 | 2 1 1 2 1 6 1 1 2 2 7 3 4 3 . . 1 . Treads 34 | 2 1 1 2 1 5 1 . 2 2 6 3 4 3 . . 1 . Leg . | . . . . . . . . . . . . . . . . . . Wheel 3 | . . . . . 1 . 1 . . 1 . . . . . . . Hover . | . . . . . . . . . . . . . . . . . . Flight . | . . . . . . . . . . . . . . . . . . Utility 93 | 2 3 . 2 1 17 1 1 1 8 3 10 18 8 11 4 3 . Device 38 | 1 1 . 1 1 9 . . 1 5 . 4 7 2 5 . 1 . Storage 11 | 1 1 . . . 1 . . . . . 2 1 . 4 1 . . Processor 2 | . . . . . 1 . . . . . . . . . 1 . . Hackware 1 | . . . . . . . . . . . . . . 1 . . . Protection 41 | . 1 . 1 . 6 1 1 . 3 3 4 10 6 1 2 2 . Artifact . | . . . . . . . . . . . . . . . . . . Weapon 100 | 2 4 1 4 2 10 2 . 3 12 13 4 6 18 13 . 2 4 Energy Gun 25 | 1 3 . 2 1 1 . . . 2 2 1 3 5 4 . . . Energy Cannon 11 | . . . 2 . 2 . . 1 1 2 . . 2 . . . 1 Ballistic Gun 36 | 1 1 1 . 1 5 1 . 1 4 3 2 1 7 5 . 1 2 Ballistic Cannon 13 | . . . . . . 1 . 1 1 3 1 2 4 . . . . Launcher 9 | . . . . . 2 . . . 4 3 . . . . . . . Special Weapon . | . . . . . . . . . . . . . . . . . . Impact Weapon . | . . . . . . . . . . . . . . . . . . Slashing Weapon 6 | . . . . . . . . . . . . . . 4 . 1 1 Piercing Weapon . | . . . . . . . . . . . . . . . . . . Special Melee Weapon . | . . . . . . . . . . . . . . . . . . Unidentified Prototypes 12 | . . . 1 . 1 . . . . 4 1 . 2 2 . . 1 Parts Lost 78 | . 1 3 . . 2 . 1 . 5 9 9 19 9 2 3 3 12 Power 6 | . . 1 . . . . . . 1 . . 2 1 . . . 1 Propulsion 13 | . . 1 . . . . 1 . . 2 4 1 1 . . 1 2 Utility 31 | . . . . . 2 . . . 2 2 2 11 2 . 3 2 5 Weapon 28 | . 1 1 . . . . . . 2 5 3 5 5 2 . . 4 Highest Loss Streak 12 | . 1 2 . . 1 . 1 . 4 4 9 8 5 1 3 3 12 Average Slot Usage (%) 91 | . 99 99 96 100 98 93 54 93 95 93 88 86 53 86 87 88 74 Engine 4 | . 14 13 7 9 3 6 6 6 7 5 . . . . . . . Core 2 | . . . . . 3 6 . 6 3 . . . 2 5 5 5 4 Reactor 2 | . . . . . . . . . . 5 11 8 4 5 5 5 4 Treads 16 | . 27 28 21 27 19 13 . 13 18 20 12 13 9 10 10 10 7 Wheel 1 | . . . . . 1 6 10 6 3 . . . . . . . . Device 10 | . 12 14 11 18 9 6 6 13 8 6 10 8 5 15 6 6 9 Storage 12 | . 14 14 11 9 15 13 13 13 13 13 13 15 3 7 18 16 12 Processor 4 | . . . . . 5 6 6 6 6 6 5 5 5 5 9 10 9 Protection 12 | . 1 . 11 9 15 13 10 6 10 13 12 17 8 19 13 16 12 Energy Gun 6 | . 14 14 15 9 7 1 . . 2 . 4 5 5 5 5 5 4 Energy Cannon 2 | . . . 5 9 2 6 . 6 3 4 1 . . 1 . . . Ballistic Gun 9 | . 14 14 11 9 11 5 . 6 5 9 9 8 2 7 10 9 6 Ballistic Cannon 1 | . . . . . . 5 . 6 5 3 . . 1 . . . . Naked Turns . | . . . . . . . . . . . . . . . . . . Heaviest Build 183 | 11 26 24 33 37 87 83 56 76 96 102 145 167 183 101 122 122 110 Greatest Support 160 | 40 40 40 40 60 68 28 56 40 90 130 160 160 150 150 150 155 155 Greatest Overweight (x) 4 | 1 1 . 1 . 4 2 1 2 3 3 1 1 2 . . . . Average Overweight (x) . | . . . . . . 2 . 1 1 . . . . . . . . Largest Inventory Capacity 24 | 6 10 10 10 10 16 16 16 16 16 16 22 24 24 14 22 22 18 Average Capacity 14 | 5 7 10 10 10 16 16 16 16 16 16 18 23 9 6 16 19 15 Most Carried 24 | 5 10 10 10 10 16 16 16 15 16 16 22 24 23 11 13 15 14 Average Carried 12 | 3 5 9 9 9 15 15 15 11 15 14 13 20 7 6 10 13 11 Final Capacity 24 | 6 10 10 10 10 16 16 16 16 16 16 22 24 4 14 22 18 4 Final Carried 22 | 4 9 8 10 10 15 16 16 14 16 16 22 14 4 11 13 14 4 Class Distribution -------------------- 41% | Scavenger-Tank 31% | Tank 11% | Mutant 6% | Gunner Dominant Class ---------------- Mutant | -10/Materials Mutant | -10/Mines Tank | -9/Materials Scavenger-Tank | -8/Materials Tank | -7/Factory Tank | -6/Factory Mutant | -6/Waste Gunner | -6/Factory Tank | -6/Extension Scavenger-Tank | -6/Cetus Scavenger-Tank | -5/Factory Scavenger-Tank | -4/Factory Scavenger-Tank | -4/Waste Scavenger-Tank | -4/Factory Scavenger-Tank | -4/Upper Caves Scavenger-Tank | -4/Upper Caves Scavenger-Tank | -4/Zhirov Resources | -11 -10 -10 -9 -8 -7 -6 -6 -6 -6 -6 -5 -4 -4 -4 -4 -4 -4 ----------- Run | Scr Mat Min Mat Mat Fac Fac Was Fac Ext Cet Fac Fac Was Fac Upp Upp Zhi Matter Collected 7319 | 271 69 74 108 88 910 . . 212 1050 783 630 1070 741 762 421 130 . Remotely . | . . . . . . . . . . . . . . . . . . Salvage Created 11720 | 171 316 173 111 432 1739 . . 258 1854 851 827 2274 883 972 556 303 . Parts 484 | 6 23 6 8 11 81 . . 16 71 39 43 101 10 38 17 14 . Haulers Intercepted 14 | . 1 . 1 2 3 . . 1 4 . . 1 . 1 . . . Recyclers Shooed 6 | 1 . . . 1 1 . . . . . . 2 . 1 . . . Parts Field Recycled . | . . . . . . . . . . . . . . . . . . Retrieved Matter . | . . . . . . . . . . . . . . . . . . Parts Self-Destructed 31 | . . . . . . . . . . . . . . . 17 14 . Prevented . | . . . . . . . . . . . . . . . . . . Kills | -11 -10 -10 -9 -8 -7 -6 -6 -6 -6 -6 -5 -4 -4 -4 -4 -4 -4 ------- Run | Scr Mat Min Mat Mat Fac Fac Was Fac Ext Cet Fac Fac Was Fac Upp Upp Zhi Combat Hostiles Destroyed 152 | . 10 4 1 4 33 . . 1 12 19 13 28 3 12 8 4 . Guns 108 | . 10 4 1 1 21 . . . 5 7 9 26 . 12 8 4 . Cannons 30 | . . . . 3 4 . . 1 4 9 4 2 3 . . . . AOE 12 | . . . . . 7 . . . 2 3 . . . . . . . Classes Destroyed 16 | 3 4 . 1 . 5 . . . 2 . . . 1 . . . . Worker 8 | 2 . . . . . . . 2 . . 1 2 . 1 . . . Builder 10 | . . . . . 1 . . . 7 . 1 1 . . . . . Tunneler 4 | 2 . . . . 2 . . . . . . . . . . . . Hauler 14 | . 1 . 1 2 3 . . 1 4 . . 1 . 1 . . . Recycler 9 | 1 . . . 1 . . . . 4 . . 2 . 1 . . . Operator 5 | . 1 . . . 2 . . . 2 . . . . . . . . Watcher 9 | . . . 1 1 1 . . 1 1 2 1 . . 1 . . . Swarmer 15 | . 6 . . . 4 . . . . 4 . . . . 1 . . Grunt 67 | . 4 4 1 4 17 . . . 4 5 7 12 . 2 3 4 . Brawler 5 | . . . . . . . . . 2 1 2 . . . . . . Duelist 3 | . . . . . 1 . . . . . . . . 1 1 . . Sentry 11 | . . . . . 4 . . 1 2 . . 1 . 2 1 . . Hunter 18 | . . . . . 2 . . . . 2 2 8 . 2 2 . . Programmer 18 | . . . . . 5 . . . 1 . 2 6 . 4 . . . Behemoth 3 | . . . . . . . . . 2 . . 1 . . . . . Compactor 3 | . . . . . . . . . . . . . 3 . . . . Cetus Guard 7 | . . . . . . . . . . 7 . . . . . . . Packrat 1 | . . . . . . . . . . . . . . . 1 . . Savage 1 | . . . . . . . . . . . . . . 1 . . . Butcher 1 | . . . . . . . . . 1 . . . . . . . . Best Kill Streak 12 | 2 3 2 2 3 10 . . 3 5 4 7 12 2 3 3 4 . Combat Bots Only 11 | . 3 2 1 3 9 . . 1 3 4 7 11 2 2 3 4 . Max Kills in Single Turn 3 | 1 1 1 1 1 3 . . 2 2 2 1 2 1 2 1 1 . Gunslinging . | . . . . . . . . . . . . . . . . . . Exploded 2 | . . . . . 2 . . . 1 2 . . . . . . . Melee . | . . . . . . . . . . . . . . . . . . Uniques/NPCs Destroyed . | . . . . . . . . . . . . . . . . . . Combat | -11 -10 -10 -9 -8 -7 -6 -6 -6 -6 -6 -5 -4 -4 -4 -4 -4 -4 -------- Run | Scr Mat Min Mat Mat Fac Fac Was Fac Ext Cet Fac Fac Was Fac Upp Upp Zhi Damage Taken 21023 | 10 279 194 56 186 1947 . 47 39 1850 2412 2479 5479 1094 1788 881 378 1904 Core 1853 | 10 59 . 33 36 172 . . 12 36 168 134 233 182 158 24 . 596 Absorbed by Shields . | . . . . . . . . . . . . . . . . . . Reduced by Siege Mode 188 | . . . . . . . . . . 49 37 59 . . 13 30 . Core Remaining (%) 83 | 96 . 72 91 93 75 . . . . 74 86 . . . . . . Volleys Fired 588 | 21 38 14 8 22 80 3 . 4 73 51 47 110 28 52 26 7 4 Largest 3 | 2 2 2 3 3 3 3 . 3 3 3 3 3 3 3 3 3 3 Hottest 234 | 60 76 76 144 154 166 186 . 147 190 167 188 214 205 234 151 151 216 Shots Fired 1562 | 22 76 28 23 66 231 9 . 12 192 132 126 321 68 148 76 23 9 Gun 1236 | 22 76 28 22 44 191 4 . 4 98 58 110 293 41 140 76 23 6 Cannon 302 | . . . 1 22 36 5 . 8 84 64 16 28 27 8 . . 3 Launcher 24 | . . . . . 4 . . . 10 10 . . . . . . . Special . | . . . . . . . . . . . . . . . . . . Kinetic 893 | 1 38 14 8 22 115 4 . 8 113 89 93 188 45 85 51 16 3 Thermal 523 | . 30 14 15 44 96 2 . . 61 33 33 92 2 63 25 7 6 Explosive 24 | . . . . . 4 . . . 10 10 . . . . . . . Electromagnetic 122 | 21 8 . . . 16 3 . 4 8 . . 41 21 . . . . Robot Hit Streak 29 | 4 11 8 5 10 24 . . 6 17 21 21 27 12 29 19 12 13 Robot Miss Streak 8 | 2 3 2 3 3 8 . . 1 5 4 4 5 2 3 1 1 1 Penetration Max 2 | . . . . . . . . 1 1 1 1 1 1 2 1 . . Secondary Targets 17 | . 2 1 . . . . . . . . 3 6 . 2 2 1 . Max Gunslinging Chain 1 | . 1 1 . . . . . . . . 1 1 . 1 1 1 . Shots Hit Robots 1150 | 15 47 19 12 43 173 . . 9 142 99 92 249 55 110 61 17 7 Core Hits 533 | 6 20 8 6 12 120 . . 7 56 72 51 94 8 40 23 9 1 Critical Hits 77 | . . . . 2 2 . . 2 15 12 6 21 8 3 3 2 1 Critical Kills 24 | . . . . . 1 . . 1 3 5 2 7 2 . 2 1 . Critical Parts Destroyed 41 | . . . . 2 1 . . 1 8 6 3 13 1 3 1 1 1 Melee Attacks 13 | . . . . . . . . . . . . . . 10 . 1 2 Impact . | . . . . . . . . . . . . . . . . . . Slashing 13 | . . . . . . . . . . . . . . 10 . 1 2 Piercing . | . . . . . . . . . . . . . . . . . . Sneak Attacks . | . . . . . . . . . . . . . . . . . . Combat Hostiles . | . . . . . . . . . . . . . . . . . . Follow-up Attacks . | . . . . . . . . . . . . . . . . . . Damage Inflicted 28367 | 225 452 215 122 701 4138 . . 307 4115 2962 2711 6277 1282 2872 1354 430 204 Guns 20346 | 170 452 214 122 402 2746 . . 120 1936 1077 2269 5863 478 2613 1354 430 100 Cannons 5579 | . . . . 286 604 . . 178 1460 1125 351 414 804 253 . . 104 Explosions 2404 | 55 . . . . 783 . . . 719 760 87 . . . . . . Melee . | . . . . . . . . . . . . . . . . . . Ramming 38 | . . 1 . 13 5 . . 9 . . 4 . . 6 . . . Kinetic 15545 | . 132 66 19 132 1593 . . 197 1996 1492 1958 4130 1178 1575 782 249 46 Thermal 9131 | 55 250 148 103 556 1546 . . . 1240 710 749 1502 70 1291 572 181 158 Explosive 2188 | . . . . . 783 . . . 645 760 . . . . . . . Electromagnetic 1465 | 170 70 . . . 211 . . 101 234 . . 645 34 . . . . Impact . | . . . . . . . . . . . . . . . . . . Slashing . | . . . . . . . . . . . . . . . . . . Piercing . | . . . . . . . . . . . . . . . . . . Highest Corruption 20 | . . . . . 3 . 9 9 8 . 4 4 4 9 9 9 20 Average Corruption 5 | . . . . . 1 . 9 8 4 . 3 3 1 6 9 9 11 Corruption Purged 15 | . . . . . 3 . . 1 8 . . . 3 . . . . Effects 199 | . . . . . 23 . 3 7 15 . 6 8 3 60 40 26 8 Message Errors 49 | . . . . . 7 . 1 4 3 . 1 1 . 13 9 9 1 Matter Fused 32 | . . . . . 3 . 1 1 4 . . 3 . 9 6 4 1 Heat Flow Errors 22 | . . . . . 6 . . 1 1 . . . 1 3 6 3 1 Energy Discharges 22 | . . . . . 2 . 1 1 3 . . . 1 6 7 1 . Parts Rejected 1 | . . . . . . . . . . . . . . 1 . . . Data Loss (minor) 18 | . . . . . 4 . . . 1 . 2 . . 6 . 4 1 Data Loss (major) 7 | . . . . . . . . . 1 . . . . 3 1 2 . Misfires 5 | . . . . . . . . . 1 . . . . 1 . 2 1 Targeting Errors 37 | . . . . . . . . . 1 . 3 2 1 18 9 1 2 Weapon Failures 6 | . . . . . 1 . . . . . . 2 . . 2 . 1 Overload Shots . | . . . . . . . . . . . . . . . . . . Overflow Damage 308 | . . . . . 65 . . 11 120 . 79 12 . 21 . . . Projectiles 175 | . . . . . 28 . . 11 81 . 22 12 . 21 . . . Explosions 133 | . . . . . 37 . . . 39 . 57 . . . . . . Melee . | . . . . . . . . . . . . . . . . . . Knockbacks 10 | . . . . . . . . . 5 . 2 3 . . . . . Impact . | . . . . . . . . . . . . . . . . . . Kinetic 8 | . . . . . . . . . 4 . 1 3 . . . . . Secondary 2 | . . . . . . . . . 1 . 1 . . . . . . Self-Inflicted Damage 86 | 10 . . . . . . . . . 76 . . . . . . . Shots 3 | 1 . . . . . . . . . 2 . . . . . . . Rammed 8 | . . 1 . 3 1 . . 1 . . 1 . . 1 . . . Targets Rammed 9 | . . 1 . 3 2 . . 1 . . 1 . . 1 . . . Kicked . | . . . . . . . . . . . . . . . . . . Crushed 1 | . . . . . 1 . . . . . . . . . . . . Highest Temperature 805 | 20 209 156 84 400 315 57 . 78 336 150 328 284 805 450 276 262 158 Average Temperature 114 | 11 57 82 32 98 62 23 . 10 91 53 106 120 371 126 92 112 52 Received Heat Transfer 2853 | . 72 105 12 90 381 . . 18 243 90 561 843 . 90 120 102 126 Effects 69 | . . . . 1 . . . . 2 . 3 1 55 7 . . . Shutdowns 14 | . . . . 1 . . . . . . . . 12 1 . . . Energy Bleed 9 | . . . . . . . . . 1 . . . 6 2 . . . Interference 19 | . . . . . . . . . . . 3 1 12 3 . . . Matter Decay 8 | . . . . . . . . . 1 . . . 7 . . . . Short Circuit 4 | . . . . . . . . . . . . . 4 . . . . Damage (minor) 6 | . . . . . . . . . . . . . 5 1 . . . Damage (major) 8 | . . . . . . . . . . . . . 8 . . . . Damage (core) 1 | . . . . . . . . . . . . . 1 . . . . Siege Activations 13 | . . . . . . . . . . 2 1 3 . 5 1 1 . Total Turns 354 | . . . . . . . . . . 30 15 204 . 71 9 25 . Longest Duration 168 | . . . . . . . . . . 24 15 168 . 25 9 25 . Robots Corrupted . | . . . . . . . . . . . . . . . . . . Combat Hostiles . | . . . . . . . . . . . . . . . . . . Parts Fried 5 | 1 . . . . . . . 1 1 . . 2 . . . . . Impact Corruptions . | . . . . . . . . . . . . . . . . . . Robots Melted 1 | . . . . . 1 . . . . . . . . . . . . Combat Hostiles 1 | . . . . . 1 . . . . . . . . . . . . Parts Melted 28 | . . . 2 2 14 . . . 1 . 4 3 . 2 . . . Heat Transferred 15468 | 50 596 370 248 1147 2886 . . . 2025 1374 1066 2738 74 1776 814 259 45 Parts Sabotaged . | . . . . . . . . . . . . . . . . . . Parts Stolen . | . . . . . . . . . . . . . . . . . . Parts Stripped . | . . . . . . . . . . . . . . . . . . Power Chain Reactions 2 | 2 . . . . . . . . . . . . . . . . . Missiles Intercepted . | . . . . . . . . . . . . . . . . . . Alert | -11 -10 -10 -9 -8 -7 -6 -6 -6 -6 -6 -5 -4 -4 -4 -4 -4 -4 ------- Run | Scr Mat Min Mat Mat Fac Fac Was Fac Ext Cet Fac Fac Was Fac Upp Upp Zhi Peak Influence 747 | 25 306 122 240 138 552 286 130 188 379 205 323 747 249 184 . . . Initial 270 | . 16 82 . 16 . 270 100 70 91 205 114 130 222 7 . . . Average 140 | 10 195 75 138 73 120 281 105 142 183 141 155 261 118 58 . . . Maximum Alert Level 3 | . 1 . 1 . 2 1 . . 1 1 1 3 1 . . . . Low Security (%) 72 | 100 45 100 49 100 78 . 100 100 53 87 72 51 61 100 . . . Level 1 24 | . 54 . 50 . 16 100 . . 46 12 27 27 38 . . . . Level 2 2 | . . . . . 4 . . . . . . 18 . . . . . Level 3 . | . . . . . . . . . . . . 2 . . . . . Level 4 . | . . . . . . . . . . . . . . . . . . Level 5 . | . . . . . . . . . . . . . . . . . . High Security . | . . . . . . . . . . . . . . . . . . Max Security . | . . . . . . . . . . . . . . . . . . Squads Dispatched 36 | . 4 . 1 . 13 1 . 1 2 . 1 9 . 4 . . . Investigation 3 | . 1 . 1 . 1 . . . . . . . . . . . . Extermination 13 | . . . . . 5 . . 1 . . 1 2 . 4 . . . Reinforcement 18 | . 3 . . . 5 1 . . 2 . . 7 . . . . . Assault . | . . . . . . . . . . . . . . . . . . Garrison 2 | . . . . . 2 . . . . . . . . . . . . Intercept . | . . . . . . . . . . . . . . . . . . Construction Impeded 3 | . . . . . . . . . 1 . . 2 . . . . . Haulers Reinforced 3 | . . . . . 1 . . . . . . 2 . . . . . Stealth | -11 -10 -10 -9 -8 -7 -6 -6 -6 -6 -6 -5 -4 -4 -4 -4 -4 -4 --------- Run | Scr Mat Min Mat Mat Fac Fac Was Fac Ext Cet Fac Fac Was Fac Upp Upp Zhi Distress Signals 16 | . 3 . . 3 2 . . . 4 2 . 2 . . . . . Communications Jammed . | . . . . . . . . . . . . . . . . . . Distress Signals . | . . . . . . . . . . . . . . . . . . Times Spotted 240 | . 21 4 7 8 52 . 4 2 26 22 17 36 7 19 8 4 3 Peak Tracking Total 6 | . 6 2 3 3 6 1 5 2 6 5 5 6 3 3 3 4 3 Tactical Retreats 22 | . 5 . . 2 3 . . . 5 . 1 2 3 1 . . . Traps | -11 -10 -10 -9 -8 -7 -6 -6 -6 -6 -6 -5 -4 -4 -4 -4 -4 -4 ------- Run | Scr Mat Min Mat Mat Fac Fac Was Fac Ext Cet Fac Fac Was Fac Upp Upp Zhi Traps Triggered 12 | . 3 . . . 6 1 . . . . . 1 . 1 . . . Indirectly . | . . . . . . . . . . . . . . . . . . Trap Hack Attempts . | . . . . . . . . . . . . . . . . . . Triggered . | . . . . . . . . . . . . . . . . . . Disarmed . | . . . . . . . . . . . . . . . . . . Reprogrammed . | . . . . . . . . . . . . . . . . . . Reused . | . . . . . . . . . . . . . . . . . . Traps Extracted . | . . . . . . . . . . . . . . . . . . Installed . | . . . . . . . . . . . . . . . . . . Triggered . | . . . . . . . . . . . . . . . . . . Machines | -11 -10 -10 -9 -8 -7 -6 -6 -6 -6 -6 -5 -4 -4 -4 -4 -4 -4 ---------- Run | Scr Mat Min Mat Mat Fac Fac Was Fac Ext Cet Fac Fac Was Fac Upp Upp Zhi Machines Disabled 29 | . 1 . 1 1 2 . . . 4 3 8 7 . . . 1 1 Max in Single Turn 7 | . 1 . . 1 1 . . . 2 2 7 4 . . . 1 1 Energy Cycler 1 | . . . . . . . . . 1 . . . . . . . . Machines Sabotaged . | . . . . . . . . . . . . . . . . . . Garrisons Compromised . | . . . . . . . . . . . . . . . . . . Overloaded Fab Kills . | . . . . . . . . . . . . . . . . . . Fab Network Shutdowns . | . . . . . . . . . . . . . . . . . . Hacking | -11 -10 -10 -9 -8 -7 -6 -6 -6 -6 -6 -5 -4 -4 -4 -4 -4 -4 --------- Run | Scr Mat Min Mat Mat Fac Fac Was Fac Ext Cet Fac Fac Was Fac Upp Upp Zhi Machines Accessed 55 | . 1 . 3 2 14 2 . 4 5 3 5 6 . 7 1 2 . Terminals 29 | . 1 . 2 1 7 2 . 2 4 3 2 2 . 2 1 . . Fabricators 6 | . . . . . 1 . . 1 . . 2 2 . . . . . Repair Stations 4 | . . . . . 2 . . . . . 1 1 . . . . . Recycling Units 8 | . . . 1 . 3 . . 1 1 . . . . 2 . . . Scanalyzers 4 | . . . . 1 . . . . . . . 1 . 2 . . . Garrison Access 2 | . . . . . 1 . . . . . . . . 1 . . . Total Hacks 109 | . 4 . 6 7 28 5 . 8 11 5 8 13 . 11 1 2 . Successful 48 | . 2 . 1 6 12 1 . 5 4 2 4 6 . 2 1 2 . Failed 61 | . 2 . 5 1 16 4 . 3 7 3 4 7 . 9 . . . Catastrophic 14 | . 1 . . 1 3 1 . . 3 . 1 1 . 3 . . . Database Lockouts . | . . . . . . . . . . . . . . . . . . Manual 19 | . 3 . 2 . 6 1 . . 3 . 2 1 . 1 . . . Terminals 60 | . 4 . 4 1 15 5 . 5 10 5 3 4 . 3 1 . . Fabricators 11 | . . . . . 2 . . 2 . . 3 4 . . . . . Repair Stations 9 | . . . . . 4 . . . . . 2 3 . . . . . Recycling Units 12 | . . . 2 . 6 . . 1 1 . . . . 2 . . . Scanalyzers 13 | . . . . 6 . . . . . . . 2 . 5 . . . Garrison Access 2 | . . . . . 1 . . . . . . . . 1 . . . Terminal Hacks 23 | . 2 . 1 . 5 1 . 3 4 2 1 1 . . 1 2 . Record 5 | . 1 . 1 . . . . . . 1 . . . . 1 1 . Part Schematic 1 | . . . . . 1 . . . . . . . . . . . . Open Door 5 | . . . . . . . . 1 2 1 . . . . . 1 . Branch Access Points 2 | . . . . . 1 . . 1 . . . . . . . . . Emergency Access Points 1 | . . . . . . 1 . . . . . . . . . . . Alert Level 2 | . . . . . 1 . . . 1 . . . . . . . . Unreport Threat 2 | . . . . . 1 . . . . . . 1 . . . . . Locate Traps 1 | . . . . . . . . . 1 . . . . . . . . Hauler Manifests 1 | . . . . . . . . . . . 1 . . . . . . Registered Components 1 | . 1 . . . . . . . . . . . . . . . . Zone Layout 2 | . . . . . 1 . . 1 . . . . . . . . . Fabricator Hacks 6 | . . . . . 1 . . 1 . . 2 2 . . . . . Load Schematic 3 | . . . . . . . . 1 . . 1 1 . . . . . Build 3 | . . . . . 1 . . . . . 1 1 . . . . . Repair Station Hacks 6 | . . . . . 3 . . . . . 1 2 . . . . . Scan Component 4 | . . . . . 2 . . . . . 1 1 . . . . . Repair 2 | . . . . . 1 . . . . . . 1 . . . . . Recycling Unit Hacks 6 | . . . . . 3 . . 1 . . . . . 2 . . . Report Inventory 1 | . . . . . 1 . . . . . . . . . . . . Retrieve Components 5 | . . . . . 2 . . 1 . . . . . 2 . . . Scanalyzer 7 | . . . . 6 . . . . . . . 1 . . . . . Insert Component 5 | . . . . 4 . . . . . . . 1 . . . . . Analyze 2 | . . . . 2 . . . . . . . . . . . . . Garrison Access Hacks . | . . . . . . . . . . . . . . . . . . Unauthorized Hacks . | . . . . . . . . . . . . . . . . . . Terminals . | . . . . . . . . . . . . . . . . . . Fabricators . | . . . . . . . . . . . . . . . . . . Repair Stations . | . . . . . . . . . . . . . . . . . . Recycling Units . | . . . . . . . . . . . . . . . . . . Scanalyzers . | . . . . . . . . . . . . . . . . . . Garrison Access . | . . . . . . . . . . . . . . . . . . Data Cores Recovered 1 | . . . . . . . . . 1 . . . . . . . . Used . | . . . . . . . . . . . . . . . . . . Hacking Detections 43 | . 1 . 3 1 11 2 . 2 4 2 5 6 . 5 1 . . Full Trace Events 2 | . . . 1 . 1 . . . . . . . . . . . . Feedback Events . | . . . . . . . . . . . . . . . . . . Feedback Blocked . | . . . . . . . . . . . . . . . . . . Robot Schematics Acquired . | . . . . . . . . . . . . . . . . . . Robots Built . | . . . . . . . . . . . . . . . . . . Matter . | . . . . . . . . . . . . . . . . . . Time . | . . . . . . . . . . . . . . . . . . Total Robot Build Rating . | . . . . . . . . . . . . . . . . . . Part Schematics Acquired 2 | . . . . 1 1 . . . . . . . . . . . . Parts Built 4 | . . . . . 2 . . . . . 1 1 . . . . . Matter 614 | . . . . . 190 . . . . . 190 234 . . . . . Time 181 | . . . . . 47 . . . . . 95 39 . . . . . Total Part Build Rating 22 | . . . . . 10 . . . . . 5 7 . . . . . Parts Repaired 2 | . . . . . 1 . . . . . . 1 . . . . . Time 105 | . . . . . 51 . . . . . . 54 . . . . . Parts Recycled . | . . . . . . . . . . . . . . . . . . Recycled Matter . | . . . . . . . . . . . . . . . . . . Retrieved Matter . | . . . . . . . . . . . . . . . . . . Retrieved Components 7 | . . . . . 3 . . 1 . . . . . 3 . . . Parts Scanalyzed 2 | . . . . 2 . . . . . . . . . . . . . Part Schematics Acquired 1 | . . . . 1 . . . . . . . . . . . . . Parts Damaged . | . . . . . . . . . . . . . . . . . . Bothacking | -11 -10 -10 -9 -8 -7 -6 -6 -6 -6 -6 -5 -4 -4 -4 -4 -4 -4 ------------ Run | Scr Mat Min Mat Mat Fac Fac Was Fac Ext Cet Fac Fac Was Fac Upp Upp Zhi Used RIF Installer . | . . . . . . . . . . . . . . . . . . Robots Hacked . | . . . . . . . . . . . . . . . . . . Non-combat . | . . . . . . . . . . . . . . . . . . Combat . | . . . . . . . . . . . . . . . . . . Robot Hacks Applied . | . . . . . . . . . . . . . . . . . . Relay Couplers Released . | . . . . . . . . . . . . . . . . . . Robots Rewired 16 | . . . . . . . . . 16 . . . . . . . . Allies Hacked 2 | . . . . . 1 . . . . . . . . 1 . . . Hacks Repelled . | . . . . . . . . . . . . . . . . . . Allies | -11 -10 -10 -9 -8 -7 -6 -6 -6 -6 -6 -5 -4 -4 -4 -4 -4 -4 -------- Run | Scr Mat Min Mat Mat Fac Fac Was Fac Ext Cet Fac Fac Was Fac Upp Upp Zhi Total Allies 38 | . . 3 . . . . 1 . 16 . . . 18 . . . . Largest Group 18 | . . 3 3 2 1 . 1 . 10 10 . . 18 15 . . . Highest-Rated Group 650 | . . 40 40 32 16 . 31 . 273 273 . . 650 575 . . . Highest-Rated Ally 50 | . . 16 16 16 16 . 31 . 37 37 . . 50 50 . . . Total Orders 7 | . . . . . . . . . . . 3 . . 4 . . . EXPLORE 4 | . . . . . . . . . . . 2 . . 2 . . . RETURN 3 | . . . . . . . . . . . 1 . . 2 . . . Ally Attacks 223 | . . . 45 19 3 . 9 . 33 13 . . 44 57 . . . Total Damage 4832 | . . . 457 177 51 . 147 . 799 314 . . 1648 1239 . . . Kills 27 | . . . 7 2 . . . . 7 . . . 6 5 . . . Allies Corrupted 6 | . . . . . 1 . . . . . . . . 5 . . . Allies Melted . | . . . . . . . . . . . . . . . . . . Intel | -11 -10 -10 -9 -8 -7 -6 -6 -6 -6 -6 -5 -4 -4 -4 -4 -4 -4 ------- Run | Scr Mat Min Mat Mat Fac Fac Was Fac Ext Cet Fac Fac Was Fac Upp Upp Zhi Robot Analysis Total . | . . . . . . . . . . . . . . . . . . Derelict Logs Recovered 5 | . . 2 . . . . . . . . . . . . 1 2 . Drone Launches 5 | . . . . . . . . . . . 2 . . 3 . . . Drone Recoveries 3 | . . . . . . . . . . . . . . 3 . . . Exploration | -11 -10 -10 -9 -8 -7 -6 -6 -6 -6 -6 -5 -4 -4 -4 -4 -4 -4 ------------- Run | Scr Mat Min Mat Mat Fac Fac Was Fac Ext Cet Fac Fac Was Fac Upp Upp Zhi Turns Passed 15296 | 163 520 801 421 802 3035 397 71 266 1935 741 1037 1226 727 1454 857 723 120 Spaces Moved 7467 | 75 233 471 227 448 1311 293 61 194 837 326 486 448 441 676 472 422 46 Core 155 | 14 . . . . . . . . . . . . 136 . . . 5 Treads 5863 | 61 233 471 227 448 879 . . 10 363 321 486 448 305 676 472 422 41 Legs . | . . . . . . . . . . . . . . . . . . Wheels 1449 | . . . . . 432 293 61 184 474 5 . . . . . . . Hover . | . . . . . . . . . . . . . . . . . . Flight . | . . . . . . . . . . . . . . . . . . Fastest Speed 50 | 50 160 160 160 160 120 120 100 120 120 130 155 155 50 160 160 160 50 Average Speed 153 | 140 160 160 160 160 154 120 104 123 144 162 162 170 128 160 160 160 148 Slowest Speed 250 | 160 180 160 180 160 250 120 110 190 190 183 180 180 200 160 160 160 160 Overloaded Moves . | . . . . . . . . . . . . . . . . . . Propulsion Burnouts . | . . . . . . . . . . . . . . . . . . Robots Hopped . | . . . . . . . . . . . . . . . . . . Cave-ins Triggered 1 | . . . . . 1 . . . . . . . . . . . . Exploration Rate (%) 44 | 3 38 87 27 22 36 8 79 7 85 87 19 15 97 17 68 62 41 Regions Visited 17 Branch Regions 6 Pre-discovered Areas 3 | . . 1 . . . . . . . . . . . . . 2 . Known Exits Taken 1 | . . . . . . . . 1 . . . . . . . . . Unknown Exits Taken 12 | 1 1 1 1 1 1 . . . 1 1 1 . . 1 1 1 . Scrap Searched 7 | . . 1 . . . . . . . . . . . . 2 4 . Spaces Dug 44 | . . . . . 4 2 . . 15 . 2 6 . 13 . . 2 Terrain Destroyed 524 | 9 . . . . 22 2 . 1 146 109 49 157 9 16 2 . 2 Melee 12 | . . . . . . . . . . . . . . 10 . . 2 Projectile 164 | . . . . . . 2 . 1 17 14 17 96 9 6 2 . . AOE 348 | 9 . . . . 22 . . . 129 95 32 61 . . . . . Terrain Rammed . | . . . . . . . . . . . . . . . . . . Walls Destroyed . | . . . . . . . . . . . . . . . . . . Machines Disabled . | . . . . . . . . . . . . . . . . . . Actions | -11 -10 -10 -9 -8 -7 -6 -6 -6 -6 -6 -5 -4 -4 -4 -4 -4 -4 --------- Run | Scr Mat Min Mat Mat Fac Fac Was Fac Ext Cet Fac Fac Was Fac Upp Upp Zhi Total 10116 | 110 312 493 268 491 2160 335 73 210 1412 435 631 672 543 914 515 452 90 Wait 1300 | . 19 1 11 1 672 18 . . 312 13 60 33 15 126 9 10 . Move 7452 | 74 232 470 226 447 1310 293 60 193 836 325 485 448 440 675 471 421 46 Hop . | . . . . . . . . . . . . . . . . . . Pick Up 187 | 8 10 3 7 7 26 9 1 5 16 13 17 30 13 11 5 6 . Fast Attach 43 | 3 4 . . . 8 . 1 . 6 1 . 1 9 10 . . . Attach 114 | 4 2 3 5 2 6 3 1 7 8 13 11 20 16 4 3 3 3 Detach 18 | . . . 1 . . . 5 . 1 2 2 1 3 1 . . 2 Swap 104 | . 2 . 5 3 20 2 . . 18 11 6 9 8 14 1 3 2 Drop 134 | . 5 1 5 6 32 7 5 . 17 6 2 20 11 10 . 1 6 Fire 588 | 21 38 14 8 22 80 3 . 4 73 51 47 110 28 52 26 7 4 Melee 13 | . . . . . . . . . . . . . . 10 . 1 2 Ram . | . . . . . . . . . . . . . . . . . . Kick . | . . . . . . . . . . . . . . . . . . Crush 9 | . . 1 . 3 2 . . 1 . . 1 . . 1 . . . Escape Stasis 29 | . . . . . 4 . . . . . . . . . . . 25 Rewire 125 | . . . . . . . . . 125 . . . . . . . . Trap . | . . . . . . . . . . . . . . . . . . Miscellaneous . | . . . . . . . . . . . . . . . . . . Route ------- -11/Scrapyard -10/Materials -10/Mines -9/Materials -8/Materials -7/Factory (discovered 3 exits: *Fac / Low x2) -6/Factory -6/Waste -6/Factory (discovered 4 exits: Low x2 / *Ext x2) -6/Extension (discovered 3 exits: *Fac x2 / *Cet) -6/Cetus (discovered 3 exits: *Fac x2 / [*Arc]) -5/Factory (discovered 2 exits: *Fac x2) -4/Factory -4/Waste -4/Factory -4/Upper Caves -4/Upper Caves -4/Zhirov (discovered 1 exit: [*Pro]) History --------- Turn | Location | Event 24 | -11/Scrapyard | Discovered new exit (range 15) 164 | -11/Scrapyard | Entered Materials 308 | -10/Materials | Build established: Mutant 537 | -10/Materials | Discovered new exit (range 9) 684 | -10/Materials | Entered Mines 703 | -10/Mines | Met a Derelict bent on vengeance 784 | -10/Mines | Learned location of Zion (-7) 1083 | -10/Mines | Learned Materials trap positions 1335 | -10/Mines | Assembled infested the area 1340 | -10/Mines | Assisted by a Guerilla fighting off Assembled 1451 | -10/Mines | Discovered new exit (range 9) 1472 | -10/Mines | Assisted by bots powering up and referring to "LRC-V3" 1485 | -10/Mines | Entered Materials 1485 | -9/Materials | Accompanied by 3 allies 1485 | -9/Materials | Evolved 2 slots: Utility x1, Weapon x1 1486 | -9/Materials | Loaded intel: 8 trap records 1790 | -9/Materials | Build established: Tank 1865 | -9/Materials | Discovered new exit (range 4) 1906 | -9/Materials | Entered another Materials area 1906 | -8/Materials | Accompanied by 2 allies 1906 | -8/Materials | Evolved 2 slots: Propulsion x1, Utility x1 2265 | -8/Materials | Build established: Scavenger-Tank 2656 | -8/Materials | Discovered new exit (range 9) 2708 | -8/Materials | Entered Factory 2708 | -7/Factory | Accompanied by 1 ally 2708 | -7/Factory | Evolved 2 slots: Utility x2 3004 | -7/Factory | Build established: Tank 3168 | -7/Factory | Repaired Adv. Beam Cannon 3718 | -7/Factory | Identified exit to Lower Caves 3941 | -7/Factory | Fabricated Fusion Compressor (x2) 5597 | -7/Factory | Garrison activated, responded to threat 5639 | -7/Factory | Destroyed 9 combat bots 5649 | -7/Factory | Discovered new exit (range 14) 5671 | -7/Factory | Crushed by falling debris 5743 | -7/Factory | Entered another Factory area 5743 | -6/Factory | Evolved 2 slots: Power x1, Propulsion x1 6140 | -6/Factory | Sucked down chute 6140 | -6/Factory | Entered Waste 6141 | -6/Waste | Met a frightened Derelict 6155 | -6/Waste | EMP discharged 6166 | -6/Waste | Spotted C-40 Crusher 6168 | -6/Waste | Spotted C-40 Crusher 6174 | -6/Waste | Spotted C-40 Crusher 6182 | -6/Waste | Crushed by Compactor (0 parts destroyed, 2 dropped) 6195 | -6/Waste | Discovered new exit (range 16) 6199 | -6/Waste | Spotted C-40 Crusher 6211 | -6/Waste | Entered Factory 6284 | -6/Factory | Identified exit to Lower Caves 6284 | -6/Factory | Identified exit to Extension 6477 | -6/Factory | Entered Extension 6520 | -6/Extension | Build established: Gunner 6802 | -6/Extension | Disrupted transfer network 7265 | -6/Extension | Energy Cycler disabled 7265 | -6/Extension | Rescued a captive Derelict 7266 | -6/Extension | Rescued a captive Derelict 7267 | -6/Extension | Rescued a captive Derelict 7270 | -6/Extension | Rescued a captive Derelict 7478 | -6/Extension | Build established: Tank 7500 | -6/Extension | Spotted B-75 Beast 7526 | -6/Extension | Spotted B-75 Beast 7578 | -6/Extension | Lost 4 parts (1p1u2w) 7753 | -6/Extension | Destroyed B-75 Beast 7759 | -6/Extension | Destroyed B-75 Beast 7880 | -6/Extension | Discovered new exit (range 15) 7932 | -6/Extension | Extracted ID and sensor layout for unrecognized location from A7's data core 8384 | -6/Extension | Discovered new exit (range 10) 8386 | -6/Extension | Discovered new exit (range 6) 8412 | -6/Extension | Entered Cetus 8412 | -6/Cetus | Accompanied by 10 allies 8435 | -6/Cetus | Spotted Cetus Guard 8435 | -6/Cetus | Spotted Cetus Guard 8453 | -6/Cetus | Spotted Cetus Guard 8453 | -6/Cetus | Spotted Cetus Guard 8478 | -6/Cetus | Destroyed Cetus Guard 8486 | -6/Cetus | Destroyed Cetus Guard 8490 | -6/Cetus | Destroyed Cetus Guard 8513 | -6/Cetus | Lost 4 parts (1n3w) 8781 | -6/Cetus | Discovered new exit (range 16) 8826 | -6/Cetus | Build established: Scavenger-Tank 8921 | -6/Cetus | Lost 3 parts (1u2w) 8974 | -6/Cetus | Discovered new exit (range 16) 9021 | -6/Cetus | Spotted Cetus Guard 9022 | -6/Cetus | Spotted Cetus Guard 9025 | -6/Cetus | Spotted Cetus Guard 9033 | -6/Cetus | Destroyed Cetus Guard 9040 | -6/Cetus | Destroyed Cetus Guard 9053 | -6/Cetus | Spotted Cetus Guard 9054 | -6/Cetus | Destroyed Cetus Guard 9061 | -6/Cetus | Destroyed Cetus Guard 9093 | -6/Cetus | Discovered new exit (range 15) 9103 | -6/Cetus | Met Revision 17 9153 | -6/Cetus | Entered Factory 9153 | -5/Factory | Evolved 2 slots: Utility x2 9478 | -5/Factory | Destroyed 7 combat bots 9490 | -5/Factory | Lost 9 parts (4n2u3w) 9726 | -5/Factory | Discovered new exit (range 27) 9791 | -5/Factory | Discovered new exit (range 67) 9976 | -5/Factory | Found Hvy. Reactive Plating 9979 | -5/Factory | Found Hvy. Reactive Plating 10033 | -5/Factory | Fabricated Lyr. Medium Armor Plating (x1) 10190 | -5/Factory | Entered another Factory area 10190 | -4/Factory | Evolved 2 slots: Utility x2 11020 | -4/Factory | Fabricated Imp. System Restoration Module? 11070 | -4/Factory | Repaired Centrium Heavy Treads? 11110 | -4/Factory | Spotted B-86 Titan 11137 | -4/Factory | Destroyed B-86 Titan 11166 | -4/Factory | Lost 3 parts (1p2u) 11230 | -4/Factory | Lost 3 parts (3u) 11235 | -4/Factory | Destroyed 11 combat bots 11416 | -4/Factory | Sucked down chute 11416 | -4/Factory | Entered Waste 11434 | -4/Waste | Found Prototype Device 11435 | -4/Waste | Identified Exp. Force Field 11441 | -4/Waste | Lost 8 parts (1n4u3w) 11444 | -4/Waste | Spotted C-40 Crusher 11455 | -4/Waste | Destroyed C-40 Crusher 11465 | -4/Waste | Found Damper Plating 11469 | -4/Waste | Found Damper Plating 11470 | -4/Waste | Spotted C-40 Crusher 11475 | -4/Waste | Destroyed C-40 Crusher 11514 | -4/Waste | Spotted C-40 Crusher 11514 | -4/Waste | Spotted C-40 Crusher 11522 | -4/Waste | Crushed by Compactor (1 part destroyed, 1 dropped) 11531 | -4/Waste | Crushed by Compactor (0 parts destroyed, 1 dropped) 11535 | -4/Waste | Spotted C-40 Crusher 11544 | -4/Waste | Crushed by Compactor (0 parts destroyed, 1 dropped) 11553 | -4/Waste | Crushed by Compactor (1 part destroyed) 11556 | -4/Waste | Crushed by Compactor (1 part destroyed) 11565 | -4/Waste | Destroyed C-40 Crusher 11568 | -4/Waste | Spotted C-40 Crusher 11587 | -4/Waste | Lost 3 parts (1n2w) 11626 | -4/Waste | Crushed by Compactor (1 part destroyed) 11629 | -4/Waste | Crushed by Compactor (1 part destroyed) 11638 | -4/Waste | Crushed by Compactor (1 part destroyed) 11641 | -4/Waste | Crushed by Compactor (1 part destroyed) 11672 | -4/Waste | Lost 5 parts (1p1u3w) 11680 | -4/Waste | Warlord forces began an assault 11718 | -4/Waste | Allies destroyed C-40 Crusher 11719 | -4/Waste | Allies destroyed C-40 Crusher 11748 | -4/Waste | Allies destroyed C-40 Crusher 12068 | -4/Waste | Discovered new exit (range 13) 12143 | -4/Waste | Entered Factory 12143 | -4/Factory | Accompanied by 15 allies 12534 | -4/Factory | P-70 Sage assimilated allied UO-IZO(b) 13511 | -4/Factory | Discovered new exit (range 8) 13597 | -4/Factory | Entered Upper Caves 13599 | -4/Upper Caves | Core integrity fell below 50% 13926 | -4/Upper Caves | Lost 3 parts (3u) 14316 | -4/Upper Caves | Attracted the attention of an 0b10 checkpoint 14358 | -4/Upper Caves | Learned location of 1 exit from Research 14430 | -4/Upper Caves | Discovered new exit (range 10) 14454 | -4/Upper Caves | Entered another Upper Caves area 14699 | -4/Upper Caves | Found Alien Artifact 14761 | -4/Upper Caves | Learned location of Testing (-3) 14905 | -4/Upper Caves | Learned location of Quarantine (-2) 14910 | -4/Upper Caves | Lost 3 parts (1n2u) 15057 | -4/Upper Caves | Discovered new exit (range 8) 15177 | -4/Upper Caves | Entered Zhirov 15177 | -4/Zhirov | Discovered new exit (range 3) 15230 | -4/Zhirov | Met Zhirov 15251 | -4/Zhirov | Attacked by Zhirov 15252 | -4/Zhirov | System corruption reached 10% 15272 | -4/Zhirov | Identified Dimensional Node Initializer 15272 | -4/Zhirov | Initialized slip node 15292 | -4/Zhirov | Core integrity fell below 20% 15297 | -4/Zhirov | Destroyed by Svarog with Nova Cannon Last Messages --------------- 15276_ Dropped Imp. Matter Compressor. 15276_ Held in stasis. 15277_ The unstable cave ceiling collapses. 15277_ Dropped Adv. Focal Shield. 15278_ The unstable cave ceiling collapses. 15278_ Imp. Matter Compressor crushed. 15279_ Held in stasis. 15282_ Adv. Targeting Computer destroyed. 15282_ Held in stasis. 15284_ The unstable cave ceiling collapses. 15288_ Held in stasis. 15290_ System corrupted: Component data lost. 15291_ Held in stasis. 15291_ Imp. Cooling System destroyed. 15291_ Armor Integrity Analyzer destroyed. 15294_ The unstable cave ceiling collapses. 15294_ Held in stasis. 15295_ The unstable cave ceiling collapses. 15297_ Held in stasis. [Achievement: Achiever] Map ----- +----------------------------------------------------+ | | | | | | | | | | | | | | | ????????????????????????????????????????????? | | ????????????????????????????????????????????? | | ????????????????????????????????????????????? | | ????????????????????????????????????????????? | | ????????????????????????????????????????????? | | ????????????????????????????????????????????? | | ????????????????????????????????????????????? | | ????????????????????????????????????????????? | | ????????????????????????????????????????????? | | ???????????????????????????#""#?????????????? | | ??????????????????????????##""##????????????? | | ????????????????????###??##""""##???????????? | | ????????????######### ##?#""""""#??????#####? | | ????????????#"" """"P #?# """" #?##??## ## | | ????????????#" ### ###"### < | | ????#"X"????#" ### | | ????#X ?### | | ????#" "# 1 | | ????#"" @ ###### # | | ?????####+ # = ### ##???#"###### | | ????????# !!! S #?# """" #????##?????? | | ????????# [!!/# # ##?#""""""#???????????? | | ????????+ # [[!# ##??##""""##???????????? | | ????????## ! # # #????##""##????????????? | | ?????????## ##?????#""#?????????????? | | ??????????# # # #???????????????????????? | | ??????????### ###???????????????????????? | | ???????????? # #?????????????????????????? | | ???????????? # #?????????????????????????? | | ??????????? # #?????????????????????????? | | ?????????? ?+ +?????????????????????????? | | ??????????!"?# #?????????????????????????? | | ??????????"??# #?????????????????????????? | | ?????????"???# #?????????????????????????? | | ?????????????##++##?????????????????????????? | | ????????????????????????????????????????????? | | ????????????????????????????????????????????? | | ????????????????????????????????????????????? | | ????????????????????????????????????????????? | | ????????????????????????????????????????????? | | ????????????????????????????????????????????? | | ????????????????????????????????????????????? | | ????????????????????????????????????????????? | +----------------------------------------------------+ Best States ------------- Heat Dissipation 86 Coolant Potential 100 Energy Generation 45 Energy Capacity 600 Matter Stores 600 Matter Capacity 750 Sight Range 16 Robot Scan Range 13 Terrain Scan Range 16 Terrain Scan Density 10 Jamming Range 16 Armor Coverage 2400 Resistance: KI 40 Resistance: TH 15 Resistance: EM 90 Propulsion Shielding 33 Utility Shielding 33 Phase Shifting 10 Evasion (%) 50 Targeting Accuracy 8 Armor Integrity Analysis 33 Recoil Reduction 4 Offensive Hacking 10 Item Schematics ----------------- Enh. Autogun | -8/Materials | Scanalyzed Lyr. Medium Armor Plating | -7/Factory | Hacked Robot Schematics ------------------ None Fabricated ------------ Fusion Compressor | x2 | -7/Factory | Preloaded Lyr. Medium Armor Plating | x1 | -5/Factory Imp. System Restoration Module | x1 | -4/Factory | Preloaded Alien Tech Used ----------------- Dimensional Node Initializer Achievements -------------- Achiever Alien Tech Below Prolific Hacker Revising The Future Safety First The Science Guy Unlikely Earthworm Challenges ------------ None Game ------ Seed AngularMolecularLoader Manual? 0 Play Time 05:10:49 Cumulative 33.2 hours Start 2021.02.05 @ 17:10:07 End 2021.02.12 @ 21:51:05 Sessions 22 Manual Loads 0 Difficulty Rogue Special Mode None Game No. 9 Rogue 9 Adventurer 0 Explorer 0 Win Type - Total 0 Types 0/0/0/0/0/0/0/0/0 Lore% 12 Gallery% 31 Achievement% 25 Wizard Run 0 Options --------- ASCII 0 Keyboard 0 Movement Numpad Keybinds 0 Fullscreen 1 Font 20/SmallcapsGlow Map View 66x50 Tactical HUD 1 Map Filters NONE Filters NONE Steam 1 RUN: 4112e2fa-d3e4-448d-8db8-43ac24cc062c